bitfinex/quotes_SOLUSD_20260202
["timestamp","ask_amount","ask_price","bid_price","bid_amount"]
[1770043514028,0.46329526,104.37,104.31,0.47639566]
[1770043514229,9.63613273,104.41,104.3,0.80049408]
[1770043514230,0.46329526,104.34,104.3,0.80049408]
[1770043514754,0.46329526,104.33,104.3,0.80049408]
[1770043515154,9.26564216,104.33,104.3,0.80049408]
[1770043515341,0.46329526,104.33,104.3,0.80049408]
[1770043516351,0.02518631,104.35,104.28,9.0023469]
[1770043516651,8.8023469,104.33,104.28,9.48975374]
[1770043516953,0.30950945,104.34,104.3,8.8023469]
[1770043517127,9.08667004,104.34,104.29,9.28975374]
[1770043517327,8.8023469,104.33,104.28,0.2]
[1770043517532,8.8023469,104.33,104.28,9.0023469]
[1770043517727,9.11185635,104.32,104.28,0.2]
[1770043518141,0.02518631,104.34,104.28,0.68740684]
[1770043518346,0.28432314,104.33,104.28,9.48975374]
[1770043518561,9.08667004,104.33,104.28,9.48975374]
[1770043518741,8.8023469,104.32,104.28,0.68740684]
[1770043518937,0.28432314,104.33,104.28,9.48975374]
[1770043519148,8.8023469,104.35,104.3,8.8023469]
[1770043519354,0.16734788,104.36,104.28,9.78929842]
[1770043519355,8.8023469,104.37,104.32,8.8023469]
[1770043519655,8.8023469,104.36,104.31,9.28975374]
[1770043519861,8.8023469,104.35,104.3,8.8023469]
[1770043520232,8.8023469,104.33,104.28,9.0023469]
[1770043520540,8.8023469,104.33,104.28,0.2]
[1770043520541,8.82753321,104.33,104.28,0.2]
[1770043520855,0.14216157,104.33,104.29,9.28975374]
[1770043521353,0.14216157,104.33,104.29,0.48740684]
[1770043521354,8.94450847,104.33,104.29,0.48740684]
[1770043522251,0.02518631,104.37,104.3,9.28975374]
[1770043522443,0.28432314,104.34,104.3,9.28975374]
[1770043523337,0.28432314,104.34,104.3,0.48740684]
[1770043523538,0.28432314,104.34,104.3,9.28975374]
[1770043523738,0.28432314,104.34,104.3,0.48740684]
[1770043524051,0.30950945,104.34,104.29,8.8023469]
[1770043524460,8.8023469,104.33,104.28,0.68740684]
[1770043524647,8.8023469,104.32,104.28,0.2]
[1770043524847,8.8023469,104.31,104.28,0.2]
[1770043525350,8.8023469,104.32,104.28,0.2]
[1770043525744,8.82753321,104.32,104.28,0.2]
[1770043526040,0.28432314,104.33,104.28,9.48975374]
[1770043526240,8.8023469,104.32,104.28,0.2]
[1770043526549,8.84866491,104.3,104.28,0.2]
[1770043526748,4.27527085,104.32,104.24,0.5]
[1770043527064,0.28432314,104.33,104.26,8.84866491]
[1770043527264,8.84866491,104.3,104.25,18.94093727]
[1770043527470,47.71262147,104.43,104.3,0.5]
[1770043527648,23.40657876,104.44,104.31,8.84866491]
[1770043527649,0.45870561,104.37,104.31,8.84866491]
[1770043527851,0.45870561,104.36,104.31,8.84866491]
[1770043528162,0.45870561,104.38,104.33,8.84866491]
[1770043528383,0.45870561,104.38,104.34,8.84866491]
[1770043528658,0.45870561,104.38,104.33,8.84866491]
[1770043528867,0.45870561,104.44,104.37,8.84866491]
[1770043529076,8.84866491,104.51,104.34,4.27527085]
[1770043529077,9.30737052,104.41,104.34,4.27527085]
[1770043529242,9.30737052,104.4,104.33,0.14216157]
[1770043529569,8.84866491,104.4,104.35,0.47027699]
[1770043529738,0.45870561,104.46,104.39,9.3189419]
[1770043529944,0.45870561,104.44,104.38,0.47027699]
[1770043530265,9.13298805,104.43,104.38,0.47027699]
[1770043530448,0.45870561,104.44,104.4,8.84866491]
[1770043530765,9.30737052,104.48,104.43,8.84866491]
[1770043531059,9.13298805,104.47,104.42,9.3189419]
[1770043531242,0.28432314,104.47,104.42,9.3189419]
[1770043531768,0.45870561,104.54,104.47,0.47027699]
[1770043531971,0.45870561,104.54,104.48,8.84866491]
[1770043532259,8.84866491,104.5,104.45,9.3189419]
[1770043532450,0.45870561,104.51,104.46,9.3189419]
[1770043532759,8.84866491,104.49,104.44,0.47027699]
[1770043533070,8.84866491,104.47,104.42,9.3189419]
[1770043533365,9.30737052,104.48,104.43,9.3189419]
[1770043533663,8.84866491,104.5,104.45,9.3189419]
[1770043533843,9.30737052,104.51,104.45,9.3189419]
[1770043534465,8.84866491,104.5,104.45,9.3189419]
[1770043534659,8.84866491,104.49,104.45,0.47027699]
[1770043535762,8.84866491,104.48,104.43,9.3189419]
[1770043536164,9.30737052,104.48,104.43,9.3189419]
[1770043536365,8.84866491,104.49,104.43,0.47027699]
[1770043536548,8.84866491,104.49,104.44,0.47027699]
[1770043536750,8.84866491,104.49,104.44,9.3189419]
[1770043536946,8.84866491,104.5,104.45,9.3189419]
[1770043537144,0.45870561,104.53,104.46,9.3189419]
[1770043537350,8.84866491,104.48,104.44,0.47027699]
[1770043537759,9.30737052,104.49,104.44,9.3189419]
[1770043538466,0.45870561,104.49,104.44,9.3189419]
[1770043538656,8.84866491,104.51,104.46,8.84866491]
[1770043538846,8.84866491,104.5,104.45,9.3189419]
[1770043540069,8.84866491,104.51,104.46,9.3189419]
[1770043540769,8.84866491,104.5,104.45,9.3189419]
[1770043540953,8.84866491,104.51,104.46,0.47027699]
[1770043541265,8.84866491,104.47,104.42,0.47027699]
[1770043541456,8.84866491,104.47,104.43,0.47027699]
[1770043541658,9.59169366,104.51,104.46,0.47027699]
[1770043541860,9.30737052,104.51,104.46,9.3189419]
[1770043542058,9.30737052,104.51,104.46,0.47027699]
[1770043542472,0.45870561,104.53,104.44,8.84866491]
[1770043542676,0.45870561,104.53,104.49,8.84866491]
[1770043542862,9.30737052,104.52,104.47,8.84866491]
[1770043543046,9.30737052,104.52,104.46,9.3189419]
[1770043543047,8.84866491,104.51,104.46,9.3189419]
[1770043543248,9.30737052,104.52,104.46,9.3189419]
[1770043543568,9.30737052,104.54,104.49,9.3189419]
[1770043543975,9.30737052,104.52,104.47,0.47027699]
[1770043544156,0.45870561,104.55,104.49,8.84866491]
[1770043544475,0.45870561,104.53,104.48,0.47027699]
[1770043544671,9.44953209,104.55,104.5,8.84866491]
[1770043544974,9.30737052,104.55,104.5,8.84866491]
[1770043545180,9.30737052,104.57,104.51,9.3189419]
[1770043545670,8.84866491,104.56,104.51,9.3189419]
[1770043545877,8.84866491,104.56,104.51,0.47027699]
[1770043546049,9.30737052,104.56,104.51,0.47027699]
[1770043546249,8.84866491,104.55,104.51,0.47027699]
[1770043546469,8.84866491,104.53,104.48,9.3189419]
[1770043546649,9.30737052,104.54,104.48,9.3189419]
[1770043546845,9.30737052,104.52,104.46,0.47027699]
[1770043547067,0.45870561,104.51,104.46,0.47027699]
[1770043547269,8.84866491,104.51,104.46,9.3189419]
[1770043547576,9.30737052,104.52,104.46,18.89195581]
[1770043547770,8.84866491,104.51,104.46,0.47027699]
[1770043548072,8.84866491,104.5,104.46,0.47027699]
[1770043548257,8.84866491,104.49,104.44,0.48335272]
[1770043548594,8.84866491,104.46,104.42,0.48335272]
[1770043548752,9.304034,104.46,104.41,0.48335272]
[1770043549148,8.84866491,104.44,104.41,0.48335272]
[1770043549371,0.73969223,104.46,104.41,0.48335272]
[1770043549372,9.13298805,104.45,104.41,0.48335272]
[1770043549587,8.84866491,104.44,104.39,0.48335272]
[1770043549758,8.84866491,104.42,104.37,0.48335272]
[1770043549954,8.84866491,104.44,104.39,0.4771716]
[1770043550261,8.84866491,104.41,104.36,9.32583651]
[1770043550456,8.84866491,104.4,104.36,0.4771716]
[1770043551561,8.84866491,104.4,104.34,8.84866491]
[1770043551562,8.84866491,104.4,104.34,9.32583651]
[1770043551757,8.84866491,104.39,104.34,0.4771716]
[1770043552059,8.84866491,104.4,104.35,0.4771716]
[1770043552469,9.13298805,104.41,104.37,0.4771716]
[1770043552673,8.84866491,104.4,104.37,0.4771716]
[1770043552868,8.84866491,104.4,104.35,9.32583651]
[1770043553069,8.84866491,104.39,104.35,0.4771716]
[1770043553376,9.31551606,104.36,104.31,0.4771716]
[1770043553583,8.84866491,104.35,104.31,0.4771716]
[1770043553886,9.13298805,104.39,104.34,0.4771716]
[1770043554063,9.31551606,104.4,104.35,9.32583651]
[1770043554373,8.84866491,104.41,104.36,9.32583651]
[1770043554576,8.84866491,104.38,104.33,9.32583651]
[1770043554754,8.84866491,104.37,104.3,9.58742294]
[1770043554953,8.84866491,104.36,104.32,0.4771716]
[1770043555473,0.46685115,104.38,104.32,0.4771716]
[1770043555474,9.31551606,104.38,104.33,0.4771716]
[1770043556168,9.31551606,104.38,104.33,9.32583651]
[1770043556363,9.31551606,104.38,104.33,0.4771716]
[1770043556676,8.84866491,104.38,104.34,0.4771716]
[1770043556877,8.84866491,104.41,104.37,0.4771716]
[1770043557173,8.84866491,104.43,104.37,9.32583651]
[1770043557474,8.84866491,104.4,104.35,9.32583651]
[1770043557668,8.84866491,104.4,104.35,0.4771716]
[1770043557869,8.84866491,104.38,104.33,9.32583651]
[1770043558255,8.84866491,104.38,104.34,0.4771716]
[1770043559890,8.84866491,104.37,104.32,27.0971716]
[1770043560178,8.84866491,104.37,104.33,0.4771716]
[1770043560358,8.84866491,104.36,104.32,0.4771716]
[1770043560773,8.84866491,104.35,104.32,0.4771716]
[1770043560984,8.84866491,104.36,104.32,0.4771716]
[1770043561291,9.31551606,104.37,104.32,0.4771716]
[1770043561478,9.31551606,104.37,104.32,10.0630346]
[1770043561664,8.84866491,104.38,104.32,18.91169951]
[1770043561867,8.84866491,104.37,104.32,9.32583651]
[1770043562076,8.84866491,104.37,104.32,0.4771716]
[1770043562385,8.84866491,104.37,104.31,0.4771716]
[1770043562386,8.84866491,104.34,104.31,0.4771716]
[1770043562564,8.84866491,104.35,104.31,0.4771716]
[1770043563611,8.84866491,104.34,104.31,0.4771716]
[1770043564280,9.13298805,104.35,104.31,0.4771716]
[1770043564461,8.84866491,104.35,104.31,0.4771716]
[1770043564662,8.84866491,104.33,104.29,0.4771716]
[1770043564883,9.13298805,104.35,104.3,0.4771716]
[1770043565184,8.84866491,104.36,104.31,0.4771716]
[1770043565368,8.84866491,104.35,104.31,0.4771716]
[1770043565564,8.84866491,104.36,104.31,18.91256503]
[1770043565884,8.84866491,104.33,104.29,0.4771716]
[1770043566090,8.84866491,104.33,104.28,36.20883285]
[1770043566091,9.13298805,104.36,104.31,0.4771716]
[1770043566585,9.13298805,104.36,104.31,9.32583651]
[1770043566778,8.84866491,104.35,104.31,0.4771716]
[1770043566980,0.46685115,104.37,104.32,0.4771716]
[1770043567179,8.84866491,104.36,104.32,0.4771716]
[1770043567494,0.14216157,104.38,104.34,0.4771716]
[1770043567784,8.84866491,104.39,104.35,0.4771716]
[1770043567965,8.84866491,104.41,104.36,0.4771716]
[1770043568162,8.84866491,104.43,104.38,8.84866491]
[1770043568487,9.31551606,104.44,104.38,35.96583651]
[1770043568673,8.84866491,104.41,104.36,9.32583651]
[1770043568875,8.84866491,104.41,104.37,0.4771716]
[1770043569068,8.84866491,104.43,104.38,0.4771716]
[1770043569386,8.84866491,104.45,104.41,0.4771716]
[1770043569693,8.84866491,104.45,104.39,9.57912325]
[1770043569694,9.31551606,104.45,104.39,18.90526248]
[1770043569865,9.31551606,104.45,104.4,0.4771716]
[1770043570070,9.31551606,104.49,104.43,9.32583651]
[1770043570466,66.37280818,104.58,104.44,9.32583651]
[1770043570467,8.84866491,104.5,104.44,9.32583651]
[1770043570982,8.84866491,104.47,104.42,27.1171716]
[1770043571178,8.84866491,104.45,104.42,0.4771716]
[1770043571488,8.84866491,104.49,104.44,0.4771716]
[1770043571988,8.84866491,104.49,104.44,9.32583651]
[1770043572191,8.84866491,104.5,104.45,0.4771716]
[1770043572391,8.84866491,104.48,104.43,0.4771716]
[1770043572693,8.84866491,104.47,104.43,0.4771716]
[1770043572892,8.84866491,104.46,104.41,27.1171716]
[1770043573187,8.84866491,104.48,104.43,9.32583651]
[1770043573389,8.84866491,104.49,104.44,0.4771716]
[1770043573588,8.84866491,104.48,104.44,0.4771716]
[1770043574186,8.84866491,104.49,104.44,9.32583651]
[1770043574494,8.84866491,104.49,104.45,0.4771716]
[1770043574983,8.84866491,104.48,104.43,0.4771716]
[1770043575389,8.84866491,104.48,104.44,0.4771716]
[1770043575599,8.84866491,104.47,104.44,0.4771716]
[1770043575894,8.84866491,104.48,104.43,0.4771716]
[1770043576097,8.84866491,104.49,104.45,0.4771716]
[1770043576477,8.84866491,104.47,104.43,0.4771716]
[1770043576875,8.84866491,104.46,104.43,0.4771716]
[1770043577171,0.75117429,104.5,104.44,0.4771716]
[1770043577380,0.75117429,104.5,104.46,0.4771716]
[1770043577381,8.84866491,104.5,104.46,0.4771716]
[1770043577584,8.84866491,104.54,104.49,0.4771716]
[1770043577783,8.84866491,104.51,104.47,0.4771716]
[1770043578487,9.31551606,104.49,104.44,8.84866491]
[1770043578677,4.742122,104.53,104.46,8.84866491]
[1770043578878,9.31551606,104.52,104.46,8.84866491]
[1770043579075,8.84866491,104.51,104.46,8.84866491]
[1770043579286,9.31551606,104.52,104.47,18.42051326]
[1770043579480,9.31551606,104.52,104.32,47.58697336]
[1770043579481,0.46685115,104.5,104.32,47.58697336]
[1770043579682,0.46685115,104.46,104.41,8.84866491]
[1770043579988,0.49449111,104.5,104.44,8.84866491]
[1770043580194,8.84866491,104.49,104.44,35.46866491]
[1770043580379,9.34315602,104.5,104.45,35.46866491]
[1770043580710,13.61842687,104.5,104.45,26.62]
[1770043580908,13.61842687,104.48,104.43,8.84866491]
[1770043581210,4.76976196,104.48,104.44,8.84866491]
[1770043581373,0.49449111,104.53,104.46,0.47560263]
[1770043581574,0.49449111,104.5,104.46,0.47560263]
[1770043581906,8.84866491,104.51,104.46,9.32426754]
[1770043582079,9.34315602,104.51,104.47,0.47560263]
[1770043582388,8.84866491,104.5,104.46,26.62]
[1770043582598,13.61842687,104.5,104.46,26.62]
[1770043582792,13.61842687,104.5,104.46,35.46866491]
[1770043582793,4.76976196,104.5,104.46,35.46866491]
[1770043583287,13.61842687,104.5,104.46,26.62]
[1770043584798,9.34315602,104.49,104.46,26.62]
[1770043584996,9.34315602,104.49,104.4,23.94463381]
[1770043584997,9.34315602,104.47,104.43,0.47560263]
[1770043585195,4.27527085,104.48,104.4,0.47560263]
[1770043585196,4.27527085,104.44,104.4,0.47560263]
[1770043585596,0.49449111,104.45,104.4,9.32426754]
[1770043585783,0.49449111,104.46,104.41,9.32426754]
[1770043585979,0.49449111,104.46,104.41,0.47560263]
[1770043585980,4.27527085,104.44,104.41,0.47560263]
[1770043586289,0.49449111,104.46,104.41,9.32426754]
[1770043586594,0.49449111,104.46,104.41,8.82143932]
[1770043586795,0.49449111,104.46,104.42,26.62]
[1770043586796,4.76976196,104.46,104.42,26.62]
[1770043586976,9.60025357,104.48,104.42,35.44143932]
[1770043587179,0.49449111,104.48,104.43,9.29704195]
[1770043587378,9.458092,104.5,104.44,9.29704195]
[1770043587776,0.49449111,104.49,104.44,0.47560263]
[1770043588086,9.31593043,104.46,104.41,0.47560263]
[1770043588388,9.31593043,104.46,104.41,9.29704195]
[1770043588582,8.82143932,104.45,104.41,0.47560263]
[1770043588783,13.59120128,104.46,104.41,0.47560263]
[1770043588984,4.76976196,104.46,104.41,9.29704195]
[1770043589185,13.59120128,104.46,104.41,0.47560263]
[1770043589386,9.458092,104.48,104.43,0.47560263]
[1770043589591,13.59120128,104.49,104.44,0.47560263]
[1770043589779,4.76976196,104.49,104.44,0.47560263]
[1770043589977,9.31593043,104.51,104.45,9.29704195]
[1770043590206,0.49449111,104.5,104.45,9.29704195]
[1770043590403,0.49449111,104.54,104.48,9.29704195]
[1770043590592,5.08159936,104.61,104.47,8.82143932]
[1770043590593,0.49449111,104.52,104.47,8.82143932]
[1770043590792,0.49449111,104.52,104.47,9.29704195]
[1770043591189,9.31593043,104.51,104.45,9.29704195]
[1770043591397,9.31593043,104.51,104.46,0.47560263]
[1770043591597,0.49449111,104.5,104.46,0.47560263]
[1770043591905,9.31593043,104.5,104.46,0.47560263]
[1770043592106,0.49449111,104.5,104.46,0.47560263]
[1770043592308,0.49449111,104.49,104.44,35.91704195]
[1770043592502,0.49449111,104.49,104.44,27.09560263]
[1770043592702,0.49449111,104.49,104.44,35.91704195]
[1770043592901,0.49449111,104.49,104.45,8.82143932]
[1770043593203,9.31593043,104.51,104.45,0.47560263]
[1770043593408,0.49449111,104.51,104.46,8.82143932]
[1770043593704,0.49449111,104.5,104.45,9.29704195]
[1770043594090,0.49449111,104.49,104.44,26.62]
[1770043594392,9.31593043,104.5,104.45,0.47560263]
[1770043594987,9.31593043,104.49,104.44,35.91704195]
[1770043595186,9.31593043,104.49,104.42,9.57638395]
[1770043595187,0.49449111,104.47,104.42,9.29704195]
[1770043595407,9.31593043,104.46,104.42,0.47560263]
[1770043595587,13.73336285,104.48,104.43,0.47560263]
[1770043595786,4.91192353,104.48,104.43,9.29704195]
[1770043596086,0.49449111,104.48,104.43,9.29704195]
[1770043596299,0.49449111,104.48,104.44,9.29704195]
[1770043596500,9.31593043,104.48,104.44,0.47560263]
[1770043597391,9.31593043,104.5,104.45,9.29704195]
[1770043597799,8.82143932,104.48,104.45,0.47560263]
[1770043597999,0.49449111,104.49,104.45,0.47560263]
[1770043598314,9.31593043,104.47,104.43,26.62]
[1770043598612,8.82143932,104.47,104.43,27.09560263]
[1770043599204,9.31593043,104.48,104.43,27.09560263]
[1770043599408,0.49449111,104.48,104.44,0.47560263]
[1770043599634,9.31593043,104.48,104.44,0.47560263]
[1770043599922,0.49449111,104.46,104.42,0.47560263]
[1770043600120,8.82143932,104.46,104.42,0.47560263]
[1770043600287,8.82143932,104.45,104.42,0.47560263]
[1770043600486,8.82143932,104.46,104.42,0.47560263]
[1770043600704,9.31593043,104.46,104.42,0.47560263]
[1770043601011,9.32143932,104.53,104.47,0.0228284]
[1770043601189,9.32143932,104.53,104.47,26.6]
[1770043601190,0.5,104.53,104.47,26.6]
[1770043601395,9.32143932,104.53,104.48,8.82143932]
[1770043601606,0.5,104.51,104.47,26.6]
[1770043601800,9.32143932,104.51,104.47,26.6]
[1770043601998,0.5,104.55,104.5,8.82143932]
[1770043602310,0.5,104.57,104.52,8.82143932]
[1770043602508,0.5,104.56,104.51,8.82143932]
[1770043602709,9.32143932,104.55,104.5,35.42143932]
[1770043603119,0.5,104.55,104.5,35.42143932]
[1770043603316,0.5,104.59,104.54,8.82143932]
[1770043603515,0.6,104.61,104.56,8.82143932]
[1770043603706,0.1,104.61,104.58,8.82143932]
[1770043604012,0.1,104.61,104.59,8.82143932]
[1770043604212,0.1,104.61,104.58,35.42143932]
[1770043604393,0.1,104.61,104.59,8.82143932]
[1770043604593,0.1,104.63,104.6,8.82143932]
[1770043605008,0.1,104.63,104.61,8.82143932]
[1770043605205,0.1,104.63,104.62,8.82143932]
[1770043605605,0.5,104.67,104.62,8.82143932]
[1770043605803,9.32143932,104.67,104.62,8.82143932]
[1770043606003,0.5,104.64,104.61,26.6]
[1770043606201,9.32143932,104.64,104.61,26.6]
[1770043606519,0.5,104.66,104.63,8.82143932]
[1770043606697,0.5,104.66,104.61,35.42143932]
[1770043606899,0.1,104.69,104.61,35.42143932]
[1770043606900,9.32143932,104.64,104.61,26.6]
[1770043607204,0.5,104.66,104.61,26.6]
[1770043607411,9.32143932,104.66,104.61,35.42143932]
[1770043607596,0.5,104.66,104.62,8.82143932]
[1770043607797,8.82143932,104.67,104.62,8.82143932]
[1770043607798,0.1,104.69,104.62,0.28432314]
[1770043607994,5.97410422,104.7,104.68,8.82143932]
[1770043608212,0.5,104.75,104.69,35.42143932]
[1770043608522,0.6,104.76,104.69,26.6]
[1770043608698,0.6,104.76,104.71,8.82143932]
[1770043608900,6.14591075,104.79,104.75,8.82143932]
[1770043609200,6.14591075,104.79,104.76,8.82143932]
[1770043609920,0.1,104.81,104.77,0.28432314]
[1770043610113,0.5,104.87,104.8,8.82143932]
[1770043610305,9.32143932,104.87,104.82,8.82143932]
[1770043610500,6.77444294,104.89,104.83,8.82143932]
[1770043610717,6.77444294,104.89,104.86,8.82143932]
[1770043610919,6.77444294,104.89,104.84,4.55959399]
[1770043611100,8.82143932,104.88,104.82,8.82143932]
[1770043611300,8.82143932,104.85,104.8,0.28432314]
[1770043611504,0.5,104.88,104.78,0.28432314]
[1770043611703,0.5,104.88,104.8,0.28432314]
[1770043611908,9.32143932,104.88,104.82,8.82143932]
[1770043612102,8.82143932,104.87,104.81,8.82143932]
[1770043612421,8.82143932,104.87,104.8,9.82585688]
[1770043612422,9.32143932,104.85,104.8,0.28432314]
[1770043612716,9.32143932,104.84,104.78,8.96360089]
[1770043613427,9.32143932,104.82,104.77,26.58]
[1770043613612,9.32143932,104.84,104.77,44.94532164]
[1770043613806,9.32143932,104.84,104.78,18.36465912]
[1770043614007,0.5,104.84,104.79,0.28432314]
[1770043614217,9.32143932,104.82,104.77,26.58]
[1770043614621,8.82143932,104.8,104.77,26.58]
[1770043615221,9.32143932,104.81,104.77,26.58]
[1770043615408,8.82143932,104.82,104.77,26.58]
[1770043615612,8.82143932,104.81,104.77,26.58]
[1770043615819,8.82143932,104.8,104.77,26.58]
[1770043616135,8.82143932,104.81,104.77,26.58]
[1770043616520,8.82143932,104.8,104.77,26.58]
[1770043617223,8.82143932,104.81,104.77,26.58]
[1770043617522,8.82143932,104.8,104.77,26.58]
[1770043618019,9.32143932,104.81,104.77,26.58]
[1770043618328,4.77527085,104.86,104.79,8.82143932]
[1770043618622,0.5,104.9,104.84,0.28432314]
[1770043618815,8.82143932,104.88,104.84,26.54]
[1770043619014,9.32143932,104.88,104.84,26.54]
[1770043619215,8.82143932,104.87,104.84,26.54]
[1770043620227,8.82143932,104.86,104.84,26.54]
[1770043620424,8.82143932,104.85,104.84,24.41889953]
[1770043620620,8.82143932,104.86,104.84,24.41889953]
[1770043620922,8.82143932,104.9,104.84,33.24033885]
[1770043621224,9.32143932,104.9,104.85,8.82143932]
[1770043621430,4.98767192,104.98,104.86,8.82143932]
[1770043621431,9.32143932,104.92,104.86,8.82143932]
[1770043621623,0.5,104.92,104.87,8.82143932]
[1770043621822,8.82143932,104.9,104.85,0.28432314]
[1770043622138,9.32143932,104.9,104.84,33.24033885]
[1770043622308,0.5,104.9,104.85,0.28432314]
[1770043622626,8.82143932,104.9,104.85,0.28432314]
[1770043622928,0.5,104.88,104.84,24.41889953]
[1770043623128,9.32143932,104.87,104.81,35.36143932]
[1770043623315,0.5,104.88,104.83,8.82143932]
[1770043623638,8.82143932,104.87,104.82,0.14216157]
[1770043623924,9.32143932,104.88,104.82,9.10576246]
[1770043624126,9.32143932,104.87,104.81,44.90224529]
[1770043624514,9.32143932,104.87,104.81,44.90243847]
[1770043624829,8.82143932,104.86,104.8,5.04535145]
[1770043625036,5.36086188,104.94,104.82,4.27527085]
[1770043625037,0.5,104.94,104.82,4.27527085]
[1770043625328,9.14449442,104.96,104.9,8.82143932]
[1770043625532,8.82143932,104.93,104.87,0.14216157]
[1770043625830,8.82143932,104.9,104.85,0.45931659]
[1770043626029,8.82143932,104.92,104.87,0.45931659]
[1770043626228,4.27527085,104.95,104.85,0.60147816]
[1770043626409,0.28432314,104.92,104.81,0.45931659]
[1770043626613,8.82143932,104.86,104.81,0.45931659]
[1770043626811,0.14216157,104.92,104.82,8.82143932]
[1770043627015,0.28432314,104.95,104.85,8.82143932]
[1770043627224,9.29904398,104.9,104.84,9.28075591]
[1770043627729,8.82143932,104.89,104.84,0.45931659]
[1770043627933,8.82143932,104.88,104.83,0.28432314]
[1770043628130,8.82143932,104.87,104.81,9.28075591]
[1770043628435,8.82143932,104.86,104.81,0.45931659]
[1770043628642,8.82143932,104.85,104.81,0.45931659]
[1770043629012,8.82143932,104.83,104.77,18.82525426]
[1770043629211,8.82143932,104.83,104.77,9.28075591]
[1770043629429,8.82143932,104.82,104.77,0.45931659]
[1770043629730,9.29904398,104.84,104.78,9.28075591]
[1770043629917,9.29904398,104.84,104.79,9.28075591]
[1770043629918,0.47760466,104.84,104.79,9.28075591]
[1770043630322,0.47760466,104.84,104.79,18.82331335]
[1770043630521,9.29904398,104.86,104.8,9.28075591]
[1770043630715,9.29904398,104.86,104.8,0.45931659]
[1770043630915,8.82143932,104.87,104.81,9.28075591]
[1770043631225,9.29904398,104.89,104.83,9.28075591]
[1770043631431,8.82143932,104.89,104.83,9.28075591]
[1770043631731,9.29904398,104.92,104.86,9.28075591]
[1770043631929,9.29904398,104.92,104.86,0.45931659]
[1770043632229,0.47760466,104.91,104.84,0.74363973]
[1770043632532,8.82143932,104.88,104.82,33.84983383]
[1770043632723,9.29904398,104.89,104.83,9.28075591]
[1770043633034,0.47760466,104.89,104.83,9.28075591]
[1770043633228,8.82143932,104.88,104.83,0.45931659]
[1770043633429,9.29904398,104.88,104.82,9.10576246]
[1770043633729,9.29904398,104.88,104.82,19.10519133]
[1770043634036,0.47760466,104.88,104.83,8.82143932]
[1770043634332,0.47760466,104.88,104.83,18.81950566]
[1770043634708,0.47760466,104.88,104.83,9.28075591]
[1770043635116,8.82143932,104.86,104.81,0.45931659]
[1770043635317,9.29904398,104.89,104.83,9.28075591]
[1770043635517,9.29904398,104.88,104.82,18.36102209]
[1770043635820,8.82143932,104.86,104.81,0.45931659]
[1770043636216,8.82143932,104.85,104.79,18.82344307]
[1770043636439,9.29904398,104.86,104.81,9.28075591]
[1770043636739,9.29904398,104.88,104.82,9.28075591]
[1770043636923,4.27527085,104.92,104.81,9.10576246]
[1770043636924,8.82143932,104.86,104.81,9.10576246]
[1770043637130,8.82143932,104.86,104.81,9.56507905]
[1770043637627,8.82143932,104.86,104.81,0.45931659]
[1770043637937,8.82143932,104.85,104.8,0.28432314]
[1770043638238,0.47760466,104.88,104.81,0.45931659]
[1770043638429,9.29904398,104.91,104.85,9.28075591]
[1770043638630,0.47760466,104.93,104.87,0.45931659]
[1770043638834,9.29904398,104.92,104.87,0.45931659]
[1770043639020,9.29904398,104.94,104.88,9.28075591]
[1770043639336,8.82143932,104.93,104.88,0.45931659]
[1770043639535,8.82143932,104.92,104.88,0.45931659]
[1770043639740,8.82143932,104.92,104.87,8.82143932]
[1770043640041,8.82143932,104.89,104.84,9.28467873]
[1770043640342,8.82143932,104.89,104.84,0.46323941]
[1770043640543,8.82143932,104.89,104.84,10.00140285]
[1770043641040,8.82143932,104.89,104.84,0.46323941]
[1770043641342,8.82143932,104.91,104.86,0.46323941]
[1770043641520,0.46707304,104.91,104.85,9.56900187]
[1770043641839,8.82143932,104.92,104.87,0.46323941]
[1770043642036,9.28851236,104.93,104.87,9.28467873]
[1770043642238,9.28851236,104.92,104.87,0.46323941]
[1770043642620,8.82143932,104.9,104.85,0.74756255]
[1770043642820,8.82143932,104.9,104.85,9.56900187]
[1770043643032,9.28851236,104.9,104.85,0.46323941]
[1770043643240,8.82143932,104.89,104.85,0.46323941]
[1770043643434,8.82143932,104.87,104.83,0.46323941]
[1770043643622,8.82143932,104.86,104.81,0.46323941]
[1770043643932,0.46707304,104.89,104.83,0.46323941]
[1770043644132,8.82143932,104.89,104.84,0.46323941]
[1770043644341,8.82143932,104.89,104.84,9.28467873]
[1770043644521,8.82143932,104.89,104.84,0.46323941]
[1770043644940,8.82143932,104.88,104.84,0.46323941]
[1770043645326,8.82143932,104.88,104.82,9.56900187]
[1770043645521,9.28851236,104.87,104.82,0.46323941]
[1770043646045,9.28851236,104.87,104.82,9.28467873]
[1770043646341,8.82143932,104.86,104.8,0.46323941]
[1770043646527,0.46707304,104.86,104.81,9.28467873]
[1770043646721,0.46707304,104.86,104.81,18.82527072]
[1770043646922,9.28851236,104.86,104.81,10.0038314]